Cogmind - Beta 16.1 @@@ ROGUE MODE // 2026.04.06 @ 00:31:40 Player: XBotDoesStuff Result: Destroyed by S-10 Pest with Light Assault Rifle Performance ------------- Evolutions (1) 500 Regions Visited (4) 800 Robots Destroyed (20) 100 Value Destroyed (594) 594 Prototype IDs (1) 20 Alien Tech Used (0) 0 Bonus (0) 0 TOTAL SCORE: 2014 Bonus ------- None Cogmind --------- Core Integrity 0/400 Matter 300/300 Energy 100/100 System Corruption 6% Temperature Cool (0) Movement Core (50) Location -9/Mines Parts ------- > --- POWER (1) -------- (None) > --- PROPULSION (3) --- (None) > --- UTILITY (3) ------ Improved Targeting Computer > --- WEAPON (2) ------- Small Laser > --- INVENTORY (5) ---- Light Ion Engine Light Treads Light Treads Light Armor Plating Peak State ------------ > --- POWER ------------ Ion Engine > --- PROPULSION ------- Light Treads Light Treads Improved Treads > --- UTILITY ---------- Improved Heat Sink Experimental Sensor Array Improved Targeting Computer > --- WEAPON ----------- Mini Grenade Launcher Heavy Hammer > --- INVENTORY -------- EM Pulse Gun Medium Laser Medium Laser [Rating: 23] Favorites ----------- Power Light Ion Engine Engine Light Ion Engine Propulsion Light Treads Treads Light Treads Leg Aluminum Leg Utility Improved Targeting Computer Device Experimental Sensor Array Storage High-capacity Battery Processor Improved Targeting Computer Weapon Medium Laser Energy Gun Medium Laser Ballistic Gun Assault Rifle Launcher Mini Grenade Launcher Impact Weapon Heavy Hammer Build | -11 -10 -10 -9 -9 ------- Run | Yrd Mat Min Mat Min Slots Evolved 2 | . . . 2 . Power . | . . . . . Propulsion 1 | . . . 1 . Utility 1 | . . . 1 . Weapon . | . . . . . Parts Attached 29 | 7 4 4 13 1 Power 3 | 1 . 1 1 . Engine 3 | 1 . 1 1 . Core . | . . . . . Reactor . | . . . . . Propulsion 8 | 2 . 2 4 . Treads 6 | . . 2 4 . Leg 2 | 2 . . . . Wheel . | . . . . . Hover . | . . . . . Flight . | . . . . . Utility 6 | 1 2 1 2 . Device 3 | . 1 1 1 . Storage 2 | 1 . . 1 . Processor 1 | . 1 . . . Hackware . | . . . . . Protection . | . . . . . Artifact . | . . . . . Weapon 12 | 3 2 . 6 1 Energy Gun 7 | 1 2 . 3 1 Energy Cannon . | . . . . . Ballistic Gun 3 | 2 . . 1 . Ballistic Cannon . | . . . . . Launcher 1 | . . . 1 . Special Weapon . | . . . . . Impact Weapon 1 | . . . 1 . Slashing Weapon . | . . . . . Piercing Weapon . | . . . . . Special Melee Weapon . | . . . . . Unidentified Prototypes 1 | . . . 1 . Parts Lost 14 | . . 2 5 7 Power 3 | . . 1 1 1 Propulsion 6 | . . 1 2 3 Utility 2 | . . . 1 1 Weapon 3 | . . . 1 2 Highest Loss Streak 7 | . . 2 3 7 To Critical Strikes . | . . . . . Average Backups 3 | 1 4 3 1 4 Power . | . 1 . . . Propulsion . | . 2 1 . 2 Utility . | . . . . 1 Weapon 1 | . 1 1 1 . Tool/Special . | . . . . . Unused Backups 2 | . . . . 2 Power 1 | . . . . 1 Propulsion . | . . . . . Utility 1 | . . . . 1 Weapon . | . . . . . Tool/Special . | . . . . . Average Slot Usage (%) 94 | . 97 99 86 96 Engine 11 | . 14 13 8 11 Treads 17 | . . 11 26 33 Leg 10 | . 28 16 . . Device 14 | . 12 14 15 11 Storage 2 | . 1 . 3 11 Processor 12 | . 12 14 11 11 Energy Gun 19 | . 5 28 14 18 Ballistic Gun 3 | . 21 . 2 . Impact Weapon 1 | . . . 3 . Peak Build Rating 23 | 6 9 11 23 21 Average Rating 13 | 4 8 9 19 19 On Entrance 9 | . 6 9 11 21 Avg Prop Armor Cover (%) . | . . . . . Naked Turns . | . . . . . Heaviest Build 18 | 11 11 10 18 18 Greatest Support 63 | 20 20 40 63 60 Greatest Overweight (x) . | . . . . . Average Overweight (x) . | . . . . . Largest Inventory Capacity 8 | 8 8 5 5 5 Average Capacity 5 | 6 5 5 5 5 Most Carried 5 | 4 5 5 5 5 Average Carried 3 | 2 4 3 1 4 Final Capacity 8 | 8 5 5 5 5 Final Carried 5 | 4 5 2 5 4 Class Distribution -------------------- 100% | Mutant Dominant Class ---------------- Mutant | -10/Materials Mutant | -10/Mines Mutant | -9/Materials Mutant | -9/Mines Resources | -11 -10 -10 -9 -9 ----------- Run | Yrd Mat Min Mat Min Matter Collected 598 | 137 77 199 165 20 Remotely . | . . . . . Salvage Created 650 | . 77 135 282 156 Parts 39 | . 5 6 18 10 Haulers Intercepted . | . . . . . Recyclers Shooed . | . . . . . Parts Field Recycled . | . . . . . Retrieved Matter . | . . . . . Parts Self-Destructed . | . . . . . Prevented . | . . . . . Parts Restored . | . . . . . Kills | -11 -10 -10 -9 -9 ------- Run | Yrd Mat Min Mat Min Combat Hostiles Destroyed 18 | . 2 4 6 6 Melee 2 | . . . 2 . Guns 14 | . 2 4 3 5 Classes Destroyed 6 | . 1 2 2 1 Tunneler 2 | . . 1 1 . Watcher 1 | . . . 1 . Swarmer 4 | . . . . 4 Grunt 10 | . 2 3 3 2 Sentry 3 | . . . 3 . Assembled 1 | . . 1 . . Best Kill Streak 4 | . 1 4 3 3 Combat Bots Only 3 | . 1 2 3 3 Max Kills in Single Turn 1 | . 1 1 1 1 Gunslinging . | . . . . . Exploded . | . . . . . Melee 1 | . . . 1 . Uniques/NPCs Destroyed . | . . . . . Combat | -11 -10 -10 -9 -9 -------- Run | Yrd Mat Min Mat Min Hostile Shots Fired 244 | . 29 24 54 137 Missed 77 | . 9 12 14 42 Hits 167 | . 20 12 40 95 Melee 4 | . . 4 . . Projectile 163 | . 20 8 40 95 Critical Strikes 6 | . 1 . 3 2 Damage Taken 2191 | . 208 195 972 816 Core 477 | . 30 47 200 200 Absorbed by Shields 95 | . 77 18 . . Core Remaining (%) 84 | 100 . 69 . . Volleys Fired 67 | . 21 21 11 14 Largest 2 | . 2 2 2 2 Hottest 100 | . 100 100 90 90 Shots Fired 130 | . 42 42 21 25 Gun 125 | . 42 42 16 25 Cannon . | . . . . . Launcher 5 | . . . 5 . Special . | . . . . . Kinetic 40 | . 38 . 2 . Thermal 54 | . 4 42 5 3 Explosive 5 | . . . 5 . Electromagnetic 31 | . . . 9 22 Robot Hit Streak 8 | . 8 8 7 8 Robot Miss Streak 6 | . 4 3 2 6 Penetration Max . | . . . . . Secondary Targets 1 | . . . . 1 Max Gunslinging Chain 1 | . . . . 1 Shots Hit Robots 86 | . 24 26 21 15 Core Hits 30 | . 7 9 8 6 Critical Kills . | . . . . . Critical Parts Destroyed 2 | . . . 2 . Critical Strikes 7 | . . 4 3 . Burn 5 | . . 4 1 . Smash 2 | . . . 2 . Melee Attacks 11 | . . . 11 . Impact 11 | . . . 11 . Slashing . | . . . . . Piercing . | . . . . . Sneak Attacks . | . . . . . Combat Hostiles . | . . . . . Follow-up Attacks . | . . . . . Damage Inflicted 1341 | . 241 348 480 272 Guns 949 | . 241 348 139 221 Cannons . | . . . . . Explosions 109 | . . . 58 51 Melee 276 | . . . 276 . Ramming 7 | . . . 7 . Kinetic 240 | . 228 . 12 . Thermal 486 | . 13 348 51 74 Explosive 58 | . . . 58 . Electromagnetic 274 | . . . 76 198 Impact 276 | . . . 276 . Slashing . | . . . . . Piercing . | . . . . . Highest Corruption 6 | . . . 6 6 Average Corruption 6 | . . . 6 6 Corruption Purged . | . . . . . Corruption Blocked . | . . . . . Effects 19 | . . . 16 3 Message Errors 3 | . . . 2 1 Matter Fused 3 | . . . 3 . Energy Discharges 6 | . . . 6 . Data Loss (minor) 5 | . . . 3 2 Data Loss (major) 1 | . . . 1 . Misfires 1 | . . . 1 . Overload Shots . | . . . . . Overflow Damage 82 | . . . 82 . Projectiles . | . . . . . Explosions . | . . . . . Melee 82 | . . . 82 . Knockbacks 1 | . . . 1 . Impact 1 | . . . 1 . Kinetic . | . . . . . Secondary . | . . . . . Self-Inflicted Damage 63 | . . . 63 . Shots 3 | . . . 3 . Rammed 1 | . . . 1 . Targets Rammed 2 | . . . 2 . Kicked . | . . . . . Crushed 1 | . . . 1 . Highest Temperature 358 | . 78 358 134 188 Average Temperature 101 | . 19 161 45 86 Received Heat Transfer 508 | . 112 36 276 84 Siege Activations . | . . . . . Martial Activations . | . . . . . Shielding Activations . | . . . . . Robots Disrupted . | . . . . . Combat Hostiles . | . . . . . Robots Corrupted 2 | . . . 1 1 Combat Hostiles 2 | . . . 1 1 Parts Fried 2 | . . . 1 1 Impact Corruptions 3 | . . . 3 . Robots Melted . | . . . . . Combat Hostiles . | . . . . . Parts Melted 7 | . . 4 2 1 Heat Transferred 1741 | . 37 1332 222 150 Parts Sabotaged . | . . . . . Parts Stolen . | . . . . . Parts Stripped . | . . . . . Power Chain Reactions 1 | . . . . 1 Alert | -11 -10 -10 -9 -9 ------- Run | Yrd Mat Min Mat Min Maximum Alert Level . | . . . . . Low Security (%) 100 | 100 100 100 100 100 Level 1 . | . . . . . Level 2 . | . . . . . Level 3 . | . . . . . Level 4 . | . . . . . Level 5 . | . . . . . High Security . | . . . . . Max Security . | . . . . . Peak Influence 117 | . 55 37 117 98 Initial 10 | . . 10 . . Average 16 | . 21 2 25 60 Influence Increases 592 | . 109 65 250 168 Destroy 0b10 Robot/C 340 | . 40 60 120 120 Destroy 0b10 Robot/NC 15 | . . 5 10 . Destroy Leader 82 | . 10 . 42 30 Successful Hack 20 | . 14 . 6 . Disable Machine 15 | . . . 15 . Destroy Structure 45 | . . . 42 3 Lose Combat Pursuer 75 | . 45 . 15 15 Influence Decreases 554 | . 80 94 247 133 Entered New Map 22 | . . 19 . 3 Time Decay 392 | . 80 55 197 60 Lost Part 140 | . . 20 50 70 Squads Dispatched . | . . . . . Investigation . | . . . . . Extermination . | . . . . . Reinforcement . | . . . . . Assault . | . . . . . Garrison . | . . . . . Intercept . | . . . . . Searches Triggered . | . . . . . Construction Impeded . | . . . . . Haulers Reinforced . | . . . . . Active Scanning Responses . | . . . . . Cargo Convoy Interrupts . | . . . . . Stealth | -11 -10 -10 -9 -9 --------- Run | Yrd Mat Min Mat Min Distress Signals 3 | . 2 . 1 . Communications Jammed . | . . . . . Distress Signals . | . . . . . Times Spotted 37 | . 10 4 9 14 Peak Tracking Total 7 | . 4 1 3 7 Tactical Retreats 4 | . 2 . 1 1 Traps | -11 -10 -10 -9 -9 ------- Run | Yrd Mat Min Mat Min Traps Triggered 1 | . 1 . . . Indirectly . | . . . . . Trap Hack Attempts . | . . . . . Triggered . | . . . . . Disarmed . | . . . . . Reprogrammed . | . . . . . Reused . | . . . . . Traps Extracted . | . . . . . Installed . | . . . . . Triggered . | . . . . . Machines | -11 -10 -10 -9 -9 ---------- Run | Yrd Mat Min Mat Min Machines Disabled 1 | . . . 1 . Max in Single Turn 1 | . . . 1 . Machines Repaired . | . . . . . Machines Dismantled . | . . . . . Machines Sabotaged . | . . . . . Overloaded Fab Kills . | . . . . . Hacking | -11 -10 -10 -9 -9 --------- Run | Yrd Mat Min Mat Min Machines Accessed 3 | . 2 . 1 . Terminals 3 | . 2 . 1 . Fabricators . | . . . . . Repair Stations . | . . . . . Recycling Units . | . . . . . Scanalyzers . | . . . . . Garrison Access . | . . . . . Total Hacks 8 | . 5 . 3 . Successful 4 | . 2 . 2 . Failed 4 | . 3 . 1 . Catastrophic . | . . . . . Database Lockouts . | . . . . . Manual 3 | . 2 . 1 . Terminals 8 | . 5 . 3 . Fabricators . | . . . . . Repair Stations . | . . . . . Recycling Units . | . . . . . Scanalyzers . | . . . . . Garrison Access . | . . . . . Terminal Hacks 3 | . 2 . 1 . Zone Layout 3 | . 2 . 1 . Fabricator Hacks . | . . . . . Repair Station Hacks . | . . . . . Recycling Unit Hacks . | . . . . . Scanalyzer . | . . . . . Garrison Access Hacks . | . . . . . Unauthorized Hacks 1 | . . . 1 . Terminals 1 | . . . 1 . Assimilate 1 | . . . 1 . Fabricators . | . . . . . Repair Stations . | . . . . . Recycling Units . | . . . . . Scanalyzers . | . . . . . Garrison Access . | . . . . . Data Cores Recovered . | . . . . . Used . | . . . . . Hacking Detections 3 | . 2 . 1 . Full Trace Events . | . . . . . Feedback Events . | . . . . . Feedback Blocked . | . . . . . Robot Schematics Acquired . | . . . . . Robots Built . | . . . . . Authchips . | . . . . . Time . | . . . . . Total Robot Build Rating . | . . . . . Part Schematics Acquired . | . . . . . Parts Built . | . . . . . Authchips . | . . . . . Time . | . . . . . Total Part Build Rating . | . . . . . Part Studies Acquired . | . . . . . Parts Repaired . | . . . . . Time . | . . . . . Parts Recycled . | . . . . . Recycled Matter . | . . . . . Retrieved Matter . | . . . . . Retrieved Components . | . . . . . Parts Scanalyzed . | . . . . . Part Schematics Acquired . | . . . . . Parts Damaged . | . . . . . Bothacking | -11 -10 -10 -9 -9 ------------ Run | Yrd Mat Min Mat Min Used RIF Installer . | . . . . . Robots Hacked . | . . . . . Non-combat . | . . . . . Combat . | . . . . . Robot Hacks Applied . | . . . . . Relay Couplers Released . | . . . . . Fabnet Peak Effective % . | . . . . . Robots Rewired . | . . . . . Allies Hacked . | . . . . . Hacks Repelled . | . . . . . Allies | -11 -10 -10 -9 -9 -------- Run | Yrd Mat Min Mat Min Total Allies . | . . . . . Largest Group . | . . . . . Highest-Rated Group . | . . . . . Highest-Rated Ally . | . . . . . Total Orders . | . . . . . Ally Attacks . | . . . . . Total Damage . | . . . . . Kills . | . . . . . Allies Corrupted . | . . . . . Allies Melted . | . . . . . Intel | -11 -10 -10 -9 -9 ------- Run | Yrd Mat Min Mat Min Active Infowar (turns) 826 | . . . 709 117 Sensors 826 | . . . 709 117 Robot Analysis Total . | . . . . . Derelict Logs Recovered . | . . . . . Drone Launches . | . . . . . Drone Recoveries . | . . . . . Exploration | -11 -10 -10 -9 -9 ------------- Run | Yrd Mat Min Mat Min Turns Passed 1948 | 58 259 798 709 124 Spaces Moved 873 | 39 154 313 317 50 Core 8 | 8 . . . . Treads 563 | . . 196 317 50 Legs 302 | 31 154 117 . . Wheels . | . . . . . Hover . | . . . . . Flight . | . . . . . Fastest Speed 50 | 50 120 120 160 160 Average Speed 145 | 105 120 145 160 160 Slowest Speed 160 | 120 120 160 160 160 Overloaded Moves . | . . . . . Propulsion Burnouts . | . . . . . Robots Hopped . | . . . . . Potential Cave-ins . | . . . . . Cave-ins Triggered 1 | . . . 1 . Exploration Rate (%) 29 | 4 29 67 25 22 Regions Visited 4 Branch Regions 2 Pre-discovered Areas . | . . . . . Known Exits Taken . | . . . . . Unknown Exits Taken 4 | 1 1 1 1 . Scrap Searched . | . . . . . Spaces Dug . | . . . . . Terrain Destroyed 50 | . . . 47 3 Melee . | . . . . . Projectile . | . . . . . AOE 50 | . . . 47 3 Terrain Rammed . | . . . . . Walls Destroyed . | . . . . . Machines Disabled . | . . . . . Actions | -11 -10 -10 -9 -9 --------- Run | Yrd Mat Min Mat Min Total 1408 | 55 190 615 478 70 Wait 386 | . 6 275 105 . Move 869 | 38 153 312 316 50 Hop . | . . . . . Pick Up 31 | 10 3 1 15 2 Fast Attach 2 | . 2 . . . Attach 18 | 6 2 2 7 1 Detach . | . . . . . Swap 9 | 1 . 2 6 . Drop 13 | . 3 2 5 3 Fire 67 | . 21 21 11 14 Melee 11 | . . . 11 . Ram . | . . . . . Kick . | . . . . . Crush 2 | . . . 2 . Escape Stasis . | . . . . . Rewire . | . . . . . Trap . | . . . . . Miscellaneous . | . . . . . Route ------- -11/Scrapyard -10/Materials -10/Mines -9/Materials -9/Mines History --------- Turn | Location | Event 3 | -11/Scrapyard | Discovered new exit (range 15) 59 | -11/Scrapyard | Entered Materials 301 | -10/Materials | Discovered new exit (range 14) 305 | -10/Materials | Build established: Mutant 318 | -10/Materials | Entered Mines 449 | -10/Mines | Excavation squad dispatched 449 | -10/Mines | A large section of the Mines collapsed 880 | -10/Mines | Found a damaged Exp. Sensor Array with a note attached 886 | -10/Mines | Found Prototype Device 1076 | -10/Mines | Discovered new exit (range 6) 1116 | -10/Mines | Entered Materials 1116 | -9/Materials | Evolved 2 slots: Propulsion x1, Utility x1 1116 | -9/Materials | Identified Exp. Sensor Array 1388 | -9/Materials | Crushed by falling debris 1419 | -9/Materials | Lost 3 parts (1p1n1u) 1793 | -9/Materials | Discovered new exit (range 13) 1825 | -9/Materials | Entered Mines 1830 | -9/Mines | Core integrity fell below 50% 1939 | -9/Mines | Core integrity fell below 20% 1949 | -9/Mines | Destroyed by S-10 Pest with Light Assault Rifle Last Messages --------------- K-01 Serf destroyed. R-06 Scavenger collects Lgt. Ion Engine. U-05 Engineer lays Concrete. K-01 Serf collects debris. U-05 Engineer lays Concrete. Acquired Sml. Laser. R-06 Scavenger collects Structural Scanner. U-05 Engineer builds a Wall. K-01 Serf collects debris. Flight Unit melted. S-10 Pest destroyed. U-05 Engineer builds a Wall. U-05 Engineer lays Concrete. S-10 Pest destroyed. U-05 Engineer lays Concrete. Imp. Ion Engine destroyed. Exp. Sensor Array destroyed. Lgt. Treads destroyed. Dropped Hcp. Battery. JF>WA8ZDPLBREM 6Y#XOUZR93|J40 Map ----- +----------------------------------------------------+ | ?????????????????????????????????????????????????? | | ?????????????????????????????????????????????????? | | ?????????????????????????????????????????????????? | | ?????????????????????????????????????????????????? | | ?????????????????????????????????????????????????? | | ?????????????????????????????????????????????????? | | ?????????????????????????????????????????????????? | | ?????????????????????????????????????????????????? | | ?????????????????????????????????????????????????? | | ?????????????????????????????????????????????????? | | ?????????????????????????????????????????????????? | | ?????????????????????????????????????????????????? | | ?????????????????????????????????????????????????? | | ?????????????????????????????????????????????????? | | ?????????????????????????????????????????????????? | | ?????????????????????????????????????????????????? | | ????????????????????????##???????????????????????? | | ???????????????????????## #??????????????????????? | | ??????????????????????## ???????????????????#??? | | ??????????????????????? #??????????????????? ??? | | ???????????????????????# #??????????????????# ??? | | ??????????????##??????## #????????????####??# #?? | | ??????????????? ??## ##????????### ##?# #?? | | ?????????????????# ## ###?????## #?# #?? | | ?????????????????# ##????# #?# #?? | | ????????????????????# @ ##??## #??# #?? | | ????????????????????## #### #???# #?? | | ?????????????????????## ## #????# ### | | ??????????????????????# #???## # | | ?????????????????????## #?### | | ?????????????????????# ss = ### =%!% | | ????????????????????# s % !% | | ???????????????????# =s r%% = | | ??????????????????# t ### su =#### | | ??????????????????# ##?##s ######## # | | ??????????????????## ### ##???# #??????#### | | ???????????????????#####??###???# ##?????##### | | ???????????????????????????????# ##??????# | | ??????????????????????????????# ##???????# #### | | ??????????????????????????????# #????????# #??? | | ??????????????????????????????# ????????# ##?? | | ??????????????????????????????# ???????## #?? | | ??????????????????????????????# ??????##[ #?? | | ??????????????????????????????## ?????##%* #?? | | ???????????????????????????????## ?????#==/ #?? | | ????????????????????????????????## ????##% = #?? | | ??????????????????????????????????# ????#[=* ##?? | | ??????????????????????????????????? ????#=%* ##??? | | ????????????????????????????????????????## ##???? | | ?????????????????????????????????????????####????? | +----------------------------------------------------+ Best States ------------- Heat Dissipation 42 Energy Generation 12 Energy Capacity 515 Matter Stores 300 Matter Capacity 300 Sight Range 16 Robot Scan Range 20 Terrain Scan Density 10 Evasion (%) 55 Targeting Accuracy 6 Recoil Reduction 3 Item Schematics ----------------- None Robot Schematics ------------------ None Fabricated ------------ Nothing Repaired ---------- Nothing Studied --------- None Alien Tech Used ----------------- None Achievements -------------- None Challenges ------------ None Game ------ Seed UltimatePlasmaBallwheel Manual? 0 Play Time 00:14:17 Cumulative 7.8 hours Start 2026.04.06 @ 00:18:35 End 2026.04.06 @ 00:31:40 Sessions 1 Manual Loads 0 Difficulty Rogue Special Mode None Game No. 30 Rogue 30 Adventurer 0 Explorer 0 Win Type - Total 0 Types 0/0/0/0/0/0/0/0/0/0 Lore% 10 Gallery% 18 Achievement% 14 Wizard Run 0 Options --------- Layout 1 ASCII 0 Keyboard 0 Movement Mouse Keybinds 0 Fullscreen 2 Font 24/Smallcaps Map View 50x40 Zoom Use 0% Tactical HUD 0 Map Filters NONE Filters NONE Steam 1 RUN: 62cfc905-f4b3-46a2-820f-13a8e87632cb